[Event "30e Open International de Saint Affrique"]
[Site "Saint Affrique, France"]
[Date "2024.07.25"]
[Round "7.2"]
[White "Kim, Jisu"]
[Black "Travadon, Loic"]
[Result "0-1"]
[TimeControl "1h30/40 + 30min + sec/mv"]
[BlackTitle "IM"]
[WhiteElo "2077"]
[BlackElo "2458"]

1. e4 {[%clk 01:30:57]} {[%emt 00:00:02]} c5 {[%clk 01:25:14]} {[%emt
00:05:46]} 2. Nf3 {[%clk 01:31:18]} {[%emt 00:00:09]} d6 {[%clk 01:25:17]}
{[%emt 00:00:27]} 3. Bb5+ {[%clk 01:31:36]} {[%emt 00:00:12]} Nc6 {[%clk
01:24:59]} {[%emt 00:00:48]} 4. Bxc6+ {[%clk 01:30:42]} {[%emt 00:01:24]} bxc6
{[%clk 01:25:22]} {[%emt 00:00:06]} 5. e5 {[%clk 01:30:58]} {[%emt 00:00:15]}
f6 {[%clk 01:25:45]} {[%emt 00:00:07]} 6. exd6 {[%clk 01:31:24]} {[%emt
00:00:04]} e5 {[%clk 01:26:07]} {[%emt 00:00:08]} 7. d3 {[%clk 01:31:29]}
{[%emt 00:00:24]} Bxd6 {[%clk 01:26:23]} {[%emt 00:00:14]} 8. Nfd2 {[%clk
01:30:24]} {[%emt 00:01:35]} Ne7 {[%clk 01:25:59]} {[%emt 00:00:55]} 9. Nc4
{[%clk 01:22:41]} {[%emt 00:08:13]} Bc7 {[%clk 01:26:07]} {[%emt 00:00:22]} 10.
O-O {[%clk 01:21:46]} {[%emt 00:01:25]} O-O {[%clk 01:24:29]} {[%emt 00:02:08]}
11. Nbd2 {[%clk 01:17:20]} {[%emt 00:04:56]} f5 {[%clk 01:20:53]} {[%emt
00:04:07]} 12. Re1 {[%clk 01:03:15]} {[%emt 00:14:34]} Ng6 {[%clk 01:20:28]}
{[%emt 00:00:55]} 13. Nf3 {[%clk 00:55:47]} {[%emt 00:07:59]} Qd5 {[%clk
01:17:11]} {[%emt 00:03:46]} 14. Qe2 {[%clk 00:50:14]} {[%emt 00:06:04]} Re8
{[%clk 01:17:31]} {[%emt 00:00:10]} 15. Bd2 {[%clk 00:43:38]} {[%emt 00:07:06]}
Ba6 {[%clk 01:17:33]} {[%emt 00:00:28]} 16. Ba5 {[%clk 00:36:12]} {[%emt
00:07:56]} Rac8 {[%clk 01:14:08]} {[%emt 00:03:55]} 17. Bxc7 {[%clk 00:35:25]}
{[%emt 00:01:17]} Rxc7 {[%clk 01:14:36]} {[%emt 00:00:02]} 18. b3 {[%clk
00:33:28]} {[%emt 00:02:27]} Rce7 {[%clk 01:15:00]} {[%emt 00:00:06]} 19. Nfd2
{[%clk 00:29:02]} {[%emt 00:04:56]} Nf4 {[%clk 01:11:04]} {[%emt 00:04:25]} 20.
Qf3 {[%clk 00:29:07]} {[%emt 00:00:25]} Bxc4 {[%clk 01:11:27]} {[%emt
00:00:07]} 21. bxc4 {[%clk 00:29:28]} {[%emt 00:00:09]} Qd6 {[%clk 01:11:31]}
{[%emt 00:00:26]} 22. Nf1 {[%clk 00:22:43]} {[%emt 00:07:15]} g5 {[%clk
01:08:57]} {[%emt 00:03:05]} 23. Ng3 {[%clk 00:21:33]} {[%emt 00:01:39]} Rf8
{[%clk 01:09:20]} {[%emt 00:00:06]} 24. Rab1 {[%clk 00:19:54]} {[%emt
00:02:10]} h5 {[%clk 01:04:36]} {[%emt 00:05:14]} 25. Qd1 {[%clk 00:19:26]}
{[%emt 00:00:57]} h4 {[%clk 01:04:18]} {[%emt 00:00:48]} 26. Ne2 {[%clk
00:19:44]} {[%emt 00:00:13]} Ne6 {[%clk 01:03:38]} {[%emt 00:01:11]} 27. Rb3
{[%clk 00:18:11]} {[%emt 00:02:03]} h3 {[%clk 01:03:46]} {[%emt 00:00:21]} 28.
g3 {[%clk 00:17:16]} {[%emt 00:01:26]} g4 {[%clk 01:03:35]} {[%emt 00:00:42]}
29. Qb1 {[%clk 00:16:01]} {[%emt 00:01:45]} Ng5 {[%clk 01:02:54]} {[%emt
00:01:11]} 30. Kh1 {[%clk 00:15:04]} {[%emt 00:01:27]} Nf3 {[%clk 01:02:57]}
{[%emt 00:00:27]} 31. Rd1 {[%clk 00:15:25]} {[%emt 00:00:09]} f4 {[%clk
00:58:16]} {[%emt 00:05:12]} 32. Nc3 {[%clk 00:14:00]} {[%emt 00:01:55]} fxg3
{[%clk 00:58:06]} {[%emt 00:00:39]} 33. fxg3 {[%clk 00:14:02]} {[%emt
00:00:28]} Nd2 {[%clk 00:57:42]} {[%emt 00:00:54]} 34. Ne4 {[%clk 00:10:10]}
{[%emt 00:04:22]} Nxe4 {[%clk 00:58:03]} {[%emt 00:00:08]} 35. dxe4 {[%clk
00:10:36]} {[%emt 00:00:04]} Ref7 {[%clk 00:57:57]} {[%emt 00:00:37]} 36. Rg1
{[%clk 00:05:18]} {[%emt 00:05:48]} Qd4 {[%clk 00:55:03]} {[%emt 00:03:23]} 37.
Qe1 {[%clk 00:04:39]} {[%emt 00:01:10]} Rf1 {[%clk 00:55:04]} {[%emt 00:00:29]}
0-1

[Event "30e Open International de Saint Affrique"]
[Site "Saint Affrique, France"]
[Date "2024.07.25"]
[Round "7.3"]
[White "Flear, Glenn"]
[Black "Bassal, Samuel"]
[Result "1-0"]
[TimeControl "1h30/40 + 30min + sec/mv"]
[WhiteTitle "GM"]
[WhiteElo "2390"]
[BlackElo "1978"]

1. d4 {[%clk 01:30:57]} {[%emt 00:00:02]} e6 {[%clk 01:28:15]} {[%emt
00:02:46]} 2. c4 {[%clk 01:30:02]} {[%emt 00:01:24]} b6 {[%clk 01:28:27]}
{[%emt 00:00:18]} 3. e4 {[%clk 01:29:54]} {[%emt 00:00:37]} Bb7 {[%clk
01:28:42]} {[%emt 00:00:16]} 4. Bd3 {[%clk 01:30:15]} {[%emt 00:00:09]} Nc6
{[%clk 01:28:55]} {[%emt 00:00:17]} 5. Nf3 {[%clk 01:29:48]} {[%emt 00:00:55]}
Nb4 {[%clk 01:28:44]} {[%emt 00:00:42]} 6. Nc3 {[%clk 01:30:02]} {[%emt
00:00:16]} Nxd3+ {[%clk 01:29:01]} {[%emt 00:00:14]} 7. Qxd3 {[%clk 01:30:22]}
{[%emt 00:00:09]} Bb4 {[%clk 01:28:46]} {[%emt 00:00:45]} 8. d5 {[%clk
01:26:54]} {[%emt 00:03:58]} Ne7 {[%clk 01:27:05]} {[%emt 00:02:12]} 9. O-O
{[%clk 01:24:51]} {[%emt 00:02:31]} Bxc3 {[%clk 01:25:55]} {[%emt 00:01:40]} 10.
Qxc3 {[%clk 01:24:55]} {[%emt 00:00:26]} O-O {[%clk 01:26:07]} {[%emt
00:00:19]} 11. b3 {[%clk 01:21:42]} {[%emt 00:03:43]} Ng6 {[%clk 01:17:01]}
{[%emt 00:09:35]} 12. Bb2 {[%clk 01:17:45]} {[%emt 00:04:27]} f6 {[%clk
01:17:21]} {[%emt 00:00:11]} 13. Rad1 {[%clk 01:15:21]} {[%emt 00:02:53]} Qe7
{[%clk 01:14:04]} {[%emt 00:03:47]} 14. d6 {[%clk 01:06:54]} {[%emt 00:08:58]}
Qf7 {[%clk 01:02:05]} {[%emt 00:12:29]} 15. dxc7 {[%clk 01:01:31]} {[%emt
00:05:54]} Bxe4 {[%clk 00:45:18]} {[%emt 00:17:17]} 16. Ba3 {[%clk 01:01:19]}
{[%emt 00:00:41]} Rfc8 {[%clk 00:44:28]} {[%emt 00:01:20]} 17. Bd6 {[%clk
01:01:28]} {[%emt 00:00:21]} e5 {[%clk 00:43:23]} {[%emt 00:01:37]} 18. Rfe1
{[%clk 00:58:43]} {[%emt 00:03:14]} Bc6 {[%clk 00:38:09]} {[%emt 00:05:43]} 19.
g3 {[%clk 00:53:20]} {[%emt 00:05:53]} Nf8 {[%clk 00:34:38]} {[%emt 00:04:03]}
20. Nh4 {[%clk 00:50:28]} {[%emt 00:03:21]} g6 {[%clk 00:33:43]} {[%emt
00:01:25]} 21. f4 {[%clk 00:47:29]} {[%emt 00:03:28]} e4 {[%clk 00:29:46]}
{[%emt 00:04:28]} 22. f5 {[%clk 00:47:17]} {[%emt 00:00:42]} g5 {[%clk
00:25:42]} {[%emt 00:04:34]} 23. Ng2 {[%clk 00:42:29]} {[%emt 00:05:17]} h5
{[%clk 00:25:32]} {[%emt 00:00:41]} 24. Ne3 {[%clk 00:42:05]} {[%emt 00:00:53]}
Nh7 {[%clk 00:25:49]} {[%emt 00:00:14]} 25. Nd5 {[%clk 00:39:40]} {[%emt
00:02:54]} Re8 {[%clk 00:26:12]} {[%emt 00:00:08]} 26. Qc2 {[%clk 00:33:49]}
{[%emt 00:06:20]} g4 {[%clk 00:24:49]} {[%emt 00:01:53]} 27. Rxe4 {[%clk
00:32:33]} {[%emt 00:01:45]} Rxe4 {[%clk 00:23:05]} {[%emt 00:02:14]} 28. Qxe4
{[%clk 00:32:53]} {[%emt 00:00:10]} Ng5 {[%clk 00:23:14]} {[%emt 00:00:22]} 29.
Qe7 {[%clk 00:30:40]} {[%emt 00:02:42]} Bxd5 {[%clk 00:17:43]} {[%emt
00:06:02]} 30. cxd5 {[%clk 00:30:30]} {[%emt 00:00:39]} Re8 {[%clk 00:11:03]}
{[%emt 00:07:11]} 31. Qd8 {[%clk 00:27:27]} {[%emt 00:03:33]} Nh3+ {[%clk
00:11:20]} {[%emt 00:00:12]} 32. Kf1 {[%clk 00:27:05]} {[%emt 00:00:52]} 1-0

[Event "30e Open International de Saint Affrique"]
[Site "Saint Affrique, France"]
[Date "2024.07.25"]
[Round "7.4"]
[White "Siva Kumar, Nirish"]
[Black "Buscara, Sevan"]
[Result "1/2-1/2"]
[TimeControl "1h30/40 + 30min + sec/mv"]
[BlackTitle "IM"]
[WhiteElo "1954"]
[BlackElo "2187"]

1. Nf3 {[%clk 01:30:54]} {[%emt 00:00:05]} c5 {[%clk 01:20:52]} {[%emt
00:10:08]} 2. g3 {[%clk 01:31:15]} {[%emt 00:00:10]} b6 {[%clk 01:18:53]}
{[%emt 00:02:29]} 3. Bg2 {[%clk 01:30:44]} {[%emt 00:01:01]} Bb7 {[%clk
01:19:20]} {[%emt 00:00:03]} 4. O-O {[%clk 01:31:06]} {[%emt 00:00:08]} Nf6
{[%clk 01:19:05]} {[%emt 00:00:44]} 5. d3 {[%clk 01:31:00]} {[%emt 00:00:36]}
d6 {[%clk 01:12:54]} {[%emt 00:06:41]} 6. e4 {[%clk 01:31:12]} {[%emt
00:00:18]} Nbd7 {[%clk 01:10:30]} {[%emt 00:02:54]} 7. Re1 {[%clk 01:26:56]}
{[%emt 00:04:46]} e6 {[%clk 01:08:41]} {[%emt 00:02:19]} 8. Nbd2 {[%clk
01:26:45]} {[%emt 00:00:41]} Be7 {[%clk 01:05:34]} {[%emt 00:03:37]} 9. Nf1
{[%clk 01:24:10]} {[%emt 00:03:05]} O-O {[%clk 01:05:13]} {[%emt 00:00:51]} 10.
h4 {[%clk 01:22:58]} {[%emt 00:01:42]} Qc7 {[%clk 00:54:49]} {[%emt 00:10:54]}
11. b3 {[%clk 01:18:46]} {[%emt 00:04:42]} b5 {[%clk 00:52:44]} {[%emt
00:02:35]} 12. Ne3 {[%clk 01:18:28]} {[%emt 00:00:48]} Rab8 {[%clk 00:46:33]}
{[%emt 00:06:42]} 13. a4 {[%clk 01:17:00]} {[%emt 00:01:58]} a6 {[%clk
00:43:40]} {[%emt 00:03:23]} 14. Bd2 {[%clk 01:15:24]} {[%emt 00:02:05]} Bc6
{[%clk 00:43:22]} {[%emt 00:00:48]} 15. a5 {[%clk 01:13:10]} {[%emt 00:02:45]}
Rfe8 {[%clk 00:41:50]} {[%emt 00:02:02]} 16. Qe2 {[%clk 01:12:16]} {[%emt
00:01:23]} Bf8 {[%clk 00:40:48]} {[%emt 00:01:32]} 17. Qf1 {[%clk 01:10:45]}
{[%emt 00:02:01]} Rbc8 {[%clk 00:35:23]} {[%emt 00:05:55]} 18. Ng5 {[%clk
00:59:11]} {[%emt 00:12:04]} h6 {[%clk 00:31:33]} {[%emt 00:04:19]} 19. Nh3
{[%clk 00:59:30]} {[%emt 00:00:11]} d5 {[%clk 00:28:16]} {[%emt 00:03:48]} 20.
exd5 {[%clk 00:59:45]} {[%emt 00:00:16]} exd5 {[%clk 00:28:09]} {[%emt
00:00:37]} 21. Nf5 {[%clk 00:58:16]} {[%emt 00:01:58]} d4 {[%clk 00:25:33]}
{[%emt 00:03:06]} 22. Bf4 {[%clk 00:58:02]} {[%emt 00:00:44]} Qb7 {[%clk
00:24:20]} {[%emt 00:01:43]} 23. b4 {[%clk 00:56:39]} {[%emt 00:01:54]} Bxg2
{[%clk 00:22:55]} {[%emt 00:01:55]} 24. Qxg2 {[%clk 00:57:02]} {[%emt
00:00:07]} Qxg2+ {[%clk 00:23:05]} {[%emt 00:00:20]} 25. Kxg2 {[%clk 00:57:26]}
{[%emt 00:00:05]} Rxe1 {[%clk 00:20:41]} {[%emt 00:02:54]} 26. Rxe1 {[%clk
00:57:50]} {[%emt 00:00:06]} cxb4 {[%clk 00:20:20]} {[%emt 00:00:52]} 27. Nxd4
{[%clk 00:57:59]} {[%emt 00:00:21]} g6 {[%clk 00:18:35]} {[%emt 00:02:15]} 28.
Ng1 {[%clk 00:53:42]} {[%emt 00:04:45]} Nd5 {[%clk 00:18:10]} {[%emt 00:00:56]}
29. Bd2 {[%clk 00:53:59]} {[%emt 00:00:13]} Bg7 {[%clk 00:18:00]} {[%emt
00:00:41]} 30. Ngf3 {[%clk 00:54:22]} {[%emt 00:00:07]} Nc5 {[%clk 00:15:22]}
{[%emt 00:03:07]} 31. Rc1 {[%clk 00:48:21]} {[%emt 00:06:31]} Ne6 {[%clk
00:14:47]} {[%emt 00:01:05]} 32. Nb3 {[%clk 00:48:46]} {[%emt 00:00:06]} Nc3
{[%clk 00:12:50]} {[%emt 00:02:26]} 33. Bxc3 {[%clk 00:48:45]} {[%emt
00:00:31]} Bxc3 {[%clk 00:10:54]} {[%emt 00:02:26]} 34. Kf1 {[%clk 00:47:43]}
{[%emt 00:01:32]} g5 {[%clk 00:08:57]} {[%emt 00:02:28]} 35. hxg5 {[%clk
00:47:02]} {[%emt 00:01:11]} hxg5 {[%clk 00:09:22]} {[%emt 00:00:04]} 36. Ne1
{[%clk 00:47:13]} {[%emt 00:00:18]} f5 {[%clk 00:08:18]} {[%emt 00:01:35]} 37.
Ng2 {[%clk 00:46:23]} {[%emt 00:01:21]} f4 {[%clk 00:08:01]} {[%emt 00:00:47]}
38. gxf4 {[%clk 00:46:40]} {[%emt 00:00:13]} gxf4 {[%clk 00:08:13]} {[%emt
00:00:18]} 39. Nh4 {[%clk 00:46:31]} {[%emt 00:00:38]} Kf7 {[%clk 00:06:35]}
{[%emt 00:02:08]} 40. Nf5 {[%clk 00:45:50]} {[%emt 00:01:10]} Rc6 {[%clk
00:02:03]} {[%emt 00:05:01]} 41. d4 {[%clk 00:40:51]} {[%emt 00:05:31]} Nc7
{[%clk 00:29:20]} {[%emt 00:03:13]} 42. Rd1 {[%emt 00:02:50]} Nd5 {[%clk
00:28:21]} 43. Nh4 {[%clk 00:52:46]} {[%emt 00:17:43]} Kf6 {[%clk 00:24:00]}
{[%emt 00:04:51]} 44. Nf3 {[%clk 00:51:50]} {[%emt 00:01:26]} Kf5 {[%clk
00:23:19]} {[%emt 00:01:11]} 45. Nc5 {[%clk 00:50:43]} {[%emt 00:01:37]} Rh6
{[%clk 00:22:50]} {[%emt 00:00:58]} 46. Ke2 {[%clk 00:50:31]} {[%emt 00:00:42]}
Bb2 {[%clk 00:19:47]} {[%emt 00:03:33]} 47. Re1 {[%clk 00:35:48]} {[%emt
00:15:14]} Rh3 {[%clk 00:17:44]} {[%emt 00:02:31]} 48. Nxa6 {[%clk 00:35:19]}
{[%emt 00:01:01]} Nc3+ {[%clk 00:14:17]} {[%emt 00:03:57]} 49. Kf1 {[%clk
00:35:39]} {[%emt 00:00:10]} Rxf3 {[%clk 00:13:29]} {[%emt 00:01:17]} 50. Kg2
{[%clk 00:36:03]} {[%emt 00:00:06]} Kg4 {[%clk 00:10:52]} {[%emt 00:03:07]} 51.
Re8 {[%clk 00:36:26]} {[%emt 00:00:07]} b3 {[%clk 00:10:55]} {[%emt 00:00:27]}
52. cxb3 {[%clk 00:36:34]} {[%emt 00:00:23]} Rd3 {[%clk 00:10:44]} {[%emt
00:00:41]} 53. Rg8+ {[%clk 00:36:54]} {[%emt 00:00:10]} Kh5 {[%clk 00:09:11]}
{[%emt 00:02:02]} 54. Rf8 {[%clk 00:36:16]} {[%emt 00:01:09]} Ne2 {[%clk
00:08:07]} {[%emt 00:01:33]} 55. Nc7 {[%clk 00:35:31]} {[%emt 00:01:16]} Rxb3
{[%clk 00:06:44]} {[%emt 00:01:52]} 56. d5 {[%clk 00:34:45]} {[%emt 00:01:16]}
Ba3 {[%clk 00:04:22]} {[%emt 00:02:51]} 57. Rh8+ {[%clk 00:34:23]} {[%emt
00:00:53]} Kg6 {[%clk 00:04:36]} {[%emt 00:00:16]} 58. a6 {[%clk 00:34:23]}
{[%emt 00:00:31]} f3+ {[%clk 00:04:32]} {[%emt 00:00:34]} 59. Kh3 {[%clk
00:34:45]} {[%emt 00:00:09]} Bd6 {[%clk 00:04:08]} {[%emt 00:00:52]} 60. Rg8+
{[%clk 00:34:49]} {[%emt 00:00:27]} Kf7 {[%clk 00:03:37]} {[%emt 00:01:01]} 61.
a7 {[%clk 00:34:06]} {[%emt 00:01:14]} Ra3 {[%clk 00:03:53]} {[%emt 00:00:14]}
62. Nxb5 {[%clk 00:33:46]} {[%emt 00:00:50]} Rxa7 {[%clk 00:03:40]} {[%emt
00:00:43]} 63. Nxa7 {[%clk 00:34:00]} {[%emt 00:00:17]} Kxg8 {[%clk 00:04:01]}
{[%emt 00:00:08]} 64. Kg4 {[%clk 00:34:24]} {[%emt 00:00:06]} Bc5 {[%clk
00:02:56]} {[%emt 00:01:35]} 65. Nc6 {[%clk 00:34:47]} {[%emt 00:00:07]} Nc3
{[%clk 00:02:01]} {[%emt 00:01:25]} 66. Kxf3 {[%clk 00:35:12]} {[%emt
00:00:06]} Nxd5 {[%clk 00:02:18]} {[%emt 00:00:12]} 67. Ne5 {[%clk 00:35:37]}
{[%emt 00:00:04]} Nf6 {[%clk 00:02:22]} {[%emt 00:00:26]} 68. Ng4 {[%clk
00:35:58]} {[%emt 00:00:10]} Nd7 {[%clk 00:02:34]} {[%emt 00:00:16]} 69. Ke4
{[%clk 00:36:21]} {[%emt 00:00:08]} Kg7 {[%clk 00:02:54]} {[%emt 00:00:10]} 70.
f4 {[%clk 00:36:46]} {[%emt 00:00:05]} Bb4 {[%clk 00:02:51]} {[%emt 00:00:33]}
71. f5 {[%clk 00:37:10]} {[%emt 00:00:06]} Bc3 {[%clk 00:03:07]} {[%emt
00:00:13]} 72. Kd5 {[%clk 00:37:29]} {[%emt 00:00:12]} Nb6+ {[%clk 00:02:52]}
{[%emt 00:00:45]} 73. Ke6 {[%clk 00:37:54]} {[%emt 00:00:05]} Na4 {[%clk
00:02:17]} {[%emt 00:01:04]} 74. f6+ {[%clk 00:38:12]} {[%emt 00:00:12]} Bxf6
{[%clk 00:01:22]} {[%emt 00:00:54]} 1/2-1/2

[Event "30e Open International de Saint Affrique"]
[Site "Saint Affrique, France"]
[Date "2024.07.25"]
[Round "7.5"]
[White "Bruneau, Laurent"]
[Black "Genkeswaran, Genivan"]
[Result "1/2-1/2"]
[TimeControl "1h30/40 + 30min + sec/mv"]
[WhiteTitle "FM"]
[WhiteElo "2179"]
[BlackElo "1994"]

1. e4 {[%clk 01:29:32]} {[%emt 00:01:27]} e6 {[%clk 01:27:22]} {[%emt
00:03:38]} 2. d4 {[%clk 01:29:51]} {[%emt 00:00:11]} d5 {[%clk 01:27:43]}
{[%emt 00:00:09]} 3. Nc3 {[%clk 01:30:12]} {[%emt 00:00:09]} dxe4 {[%clk
01:27:49]} {[%emt 00:00:24]} 4. Nxe4 {[%clk 01:30:35]} {[%emt 00:00:07]} Bd7
{[%clk 01:27:46]} {[%emt 00:00:33]} 5. Nf3 {[%clk 01:29:46]} {[%emt 00:01:18]}
Bc6 {[%clk 01:28:06]} {[%emt 00:00:09]} 6. Bd3 {[%clk 01:29:46]} {[%emt
00:00:31]} Nd7 {[%clk 01:28:19]} {[%emt 00:00:17]} 7. Qe2 {[%clk 01:26:53]}
{[%emt 00:03:22]} Ngf6 {[%clk 01:23:31]} {[%emt 00:05:18]} 8. Bf4 {[%clk
01:25:28]} {[%emt 00:01:55]} Nxe4 {[%clk 01:21:07]} {[%emt 00:02:55]} 9. Bxe4
{[%clk 01:25:52]} {[%emt 00:00:06]} Bxe4 {[%clk 01:21:33]} {[%emt 00:00:04]} 10.
Qxe4 {[%clk 01:26:18]} {[%emt 00:00:04]} c6 {[%clk 01:21:57]} {[%emt 00:00:06]}
11. O-O-O {[%clk 01:26:27]} {[%emt 00:00:22]} Nf6 {[%clk 01:20:54]} {[%emt
00:01:32]} 12. Qe2 {[%clk 01:26:24]} {[%emt 00:00:33]} Be7 {[%clk 01:20:17]}
{[%emt 00:01:08]} 13. Ne5 {[%clk 01:18:14]} {[%emt 00:08:40]} O-O {[%clk
01:17:12]} {[%emt 00:03:34]} 14. Rd3 {[%clk 01:14:41]} {[%emt 00:04:03]} Nd5
{[%clk 01:13:38]} {[%emt 00:04:04]} 15. Bd2 {[%clk 01:11:54]} {[%emt 00:03:17]}
Bg5 {[%clk 01:09:26]} {[%emt 00:04:42]} 16. Rg3 {[%clk 01:03:40]} {[%emt
00:08:44]} Bxd2+ {[%clk 01:02:42]} {[%emt 00:07:14]} 17. Qxd2 {[%clk 01:04:03]}
{[%emt 00:00:06]} f6 {[%clk 01:00:15]} {[%emt 00:02:57]} 18. Nd3 {[%clk
01:00:45]} {[%emt 00:03:49]} Re8 {[%clk 00:59:14]} {[%emt 00:01:30]} 19. Re1
{[%clk 00:49:55]} {[%emt 00:11:21]} Qd6 {[%clk 00:55:08]} {[%emt 00:04:34]} 20.
c4 {[%clk 00:44:50]} {[%emt 00:05:37]} Ne7 {[%clk 00:53:05]} {[%emt 00:02:33]}
21. Nc5 {[%clk 00:33:29]} {[%emt 00:11:50]} Nf5 {[%clk 00:49:40]} {[%emt
00:03:54]} 22. Ne4 {[%clk 00:33:14]} {[%emt 00:00:46]} Qe7 {[%clk 00:46:56]}
{[%emt 00:03:13]} 23. Rd3 {[%clk 00:31:49]} {[%emt 00:01:55]} Nd6 {[%clk
00:40:05]} {[%emt 00:07:21]} 24. Nxd6 {[%clk 00:28:13]} {[%emt 00:04:06]} Qxd6
{[%clk 00:39:31]} {[%emt 00:01:04]} 25. g3 {[%emt 00:01:24]} 1/2-1/2

[ePGN "0.1;DGT LiveChess/2.2.6"]

[Event "30e Open International de Saint Affrique"]
[Site "Saint Affrique, France"]
[Date "2024.07.26"]
[Round "8.1"]
[White "Degraeve, Jean-Marc"]
[Black "Flear, Glenn"]
[Result "1-0"]
[TimeControl "1h30/40 + 30min + sec/mv"]
[WhiteTitle "GM"]
[BlackTitle "GM"]
[WhiteElo "2480"]
[BlackElo "2390"]

1. e4 {[%clk 01:30:27]} {[%emt 00:00:33]} e5 {[%clk 01:30:51]} {[%emt
00:00:09]} 2. Nf3 {[%clk 01:30:47]} {[%emt 00:00:10]} Nc6 {[%clk 01:31:14]}
{[%emt 00:00:06]} 3. d4 {[%clk 01:30:57]} {[%emt 00:00:20]} exd4 {[%clk
01:31:26]} {[%emt 00:00:18]} 4. Nxd4 {[%clk 01:31:21]} {[%emt 00:00:07]} Bc5
{[%clk 01:31:13]} {[%emt 00:00:42]} 5. Nb3 {[%clk 01:31:28]} {[%emt 00:00:23]}
Bb6 {[%clk 01:31:35]} {[%emt 00:00:08]} 6. Nc3 {[%clk 01:31:36]} {[%emt
00:00:23]} Nge7 {[%clk 01:29:22]} {[%emt 00:02:42]} 7. Bf4 {[%clk 01:31:26]}
{[%emt 00:00:40]} d6 {[%clk 01:26:15]} {[%emt 00:03:37]} 8. Qd2 {[%clk
01:30:45]} {[%emt 00:01:11]} Ng6 {[%clk 01:18:30]} {[%emt 00:08:15]} 9. Bg5
{[%clk 01:21:11]} {[%emt 00:10:04]} f6 {[%clk 01:18:25]} {[%emt 00:00:35]} 10.
Be3 {[%clk 01:21:35]} {[%emt 00:00:06]} Bxe3 {[%clk 01:14:06]} {[%emt
00:04:49]} 11. Qxe3 {[%clk 01:21:42]} {[%emt 00:00:24]} O-O {[%clk 01:14:07]}
{[%emt 00:00:29]} 12. O-O-O {[%clk 01:17:32]} {[%emt 00:04:40]} f5 {[%clk
01:12:07]} {[%emt 00:02:30]} 13. exf5 {[%clk 01:15:10]} {[%emt 00:02:52]} Bxf5
{[%clk 01:11:19]} {[%emt 00:01:17]} 14. h3 {[%clk 01:12:00]} {[%emt 00:03:41]}
Kh8 {[%clk 01:07:58]} {[%emt 00:03:50]} 15. g3 {[%clk 01:05:34]} {[%emt
00:06:56]} a5 {[%clk 00:55:49]} {[%emt 00:12:39]} 16. a3 {[%clk 01:02:48]}
{[%emt 00:03:16]} Qf6 {[%clk 00:50:28]} {[%emt 00:05:51]} 17. f4 {[%clk
01:01:45]} {[%emt 00:01:33]} Rfe8 {[%clk 00:39:03]} {[%emt 00:11:55]} 18. Qd2
{[%clk 00:59:45]} {[%emt 00:02:30]} Nf8 {[%clk 00:22:54]} {[%emt 00:16:39]} 19.
Bg2 {[%clk 00:56:59]} {[%emt 00:03:17]} a4 {[%clk 00:13:30]} {[%emt 00:09:54]}
20. Nd4 {[%clk 00:56:10]} {[%emt 00:01:18]} Nxd4 {[%clk 00:13:22]} {[%emt
00:00:38]} 21. Qxd4 {[%clk 00:56:39]} {[%emt 00:00:02]} Qxd4 {[%clk 00:12:09]}
{[%emt 00:01:43]} 22. Rxd4 {[%clk 00:57:06]} {[%emt 00:00:02]} Ne6 {[%clk
00:10:48]} {[%emt 00:01:51]} 23. Rd5 {[%clk 00:53:24]} {[%emt 00:04:12]} g6
{[%clk 00:09:11]} {[%emt 00:02:07]} 24. Rb5 {[%clk 00:52:12]} {[%emt 00:01:43]}
Nd4 {[%clk 00:04:59]} {[%emt 00:04:42]} 25. Rxb7 {[%clk 00:52:26]} {[%emt
00:00:16]} c5 {[%clk 00:03:47]} {[%emt 00:01:42]} 26. Nd5 {[%clk 00:45:23]}
{[%emt 00:07:33]} Re2 {[%clk 00:03:40]} {[%emt 00:00:37]} 27. Nf6 {[%clk
00:41:08]} {[%emt 00:04:45]} g5 {[%clk 00:03:24]} {[%emt 00:00:46]} 28. g4
{[%clk 00:40:53]} {[%emt 00:00:45]} Bxc2 {[%clk 00:03:26]} {[%emt 00:00:28]} 29.
f5 {[%clk 00:31:53]} {[%emt 00:09:30]} Ra7 {[%clk 00:03:38]} {[%emt 00:00:18]}
30. Rb8+ {[%clk 00:29:37]} {[%emt 00:02:47]} Kg7 {[%clk 00:04:02]} {[%emt
00:00:05]} 31. Ne8+ {[%clk 00:29:50]} {[%emt 00:00:18]} Kh6 {[%clk 00:03:53]}
{[%emt 00:00:40]} 32. Bd5 {[%clk 00:30:12]} {[%emt 00:00:08]} Rae7 {[%clk
00:01:17]} {[%emt 00:03:07]} 33. Nxd6 {[%clk 00:29:47]} {[%emt 00:00:55]} Nb3+
{[%clk 00:01:11]} {[%emt 00:00:35]} 34. Bxb3 {[%clk 00:29:45]} {[%emt
00:00:32]} Bxb3 {[%clk 00:01:34]} {[%emt 00:00:07]} 35. Rb6 {[%clk 00:26:59]}
{[%emt 00:03:15]} Rc2+ {[%clk 00:01:53]} {[%emt 00:00:10]} 36. Kb1 {[%clk
00:27:25]} {[%emt 00:00:05]} Kg7 {[%clk 00:01:32]} {[%emt 00:00:52]} 37. f6+
{[%clk 00:24:25]} {[%emt 00:03:30]} Kxf6 {[%clk 00:01:54]} {[%emt 00:00:07]} 38.
Nc8+ {[%clk 00:24:47]} {[%emt 00:00:09]} Re6 {[%clk 00:00:34]} {[%emt
00:01:50]} 39. Rf1+ {[%clk 00:25:11]} {[%emt 00:00:05]} Kg7 {[%clk 00:00:41]}
{[%emt 00:00:23]} 40. Rxe6 {[%clk 00:25:33]} {[%emt 00:00:08]} Bxe6 {[%clk
00:00:50]} {[%emt 00:00:21]} 41. Kxc2 {[%clk 00:25:56]} {[%emt 00:00:08]} Bxc8
{[%clk 00:01:14]} {[%emt 00:00:05]} 42. b3 {[%clk 00:25:43]} {[%emt 00:00:43]}
1-0